[Event "Titled Tuesday Blitz July 18 Late 2023"]
[White "Hnydiuk, Aleksander"]
[Black "Llorente Zaro, Alfonso"]
[WhiteFideId "1109057"]
[BlackFideId "2254131"]
[WhiteElo "2515"]
[BlackElo "2749"]
[Result "0-1"]
[Round "2"]
[TimeControl "180+2"]
[Date "2023.07.18"]
[WhiteClock "0:00:31"]
[BlackClock "0:00:40"]
[Board "51"]

1. e4 {[%clk 0:03:00]}  d6 {[%clk 0:02:27]} 2. d4 {[%clk 0:02:59]}  Nf6 {[%clk 0:02:28]} 3. Nc3 {[%clk 0:02:59]}  e5 {[%clk 0:02:28]} 4. Nf3 {[%clk 0:02:57]}  Nbd7 {[%clk 0:02:28]} 5. g4 {[%clk 0:02:57]}  g6 {[%clk 0:02:24]} 6. g5 {[%clk 0:02:34]}  Nh5 {[%clk 0:02:23]} 7. Be3 {[%clk 0:02:34]}  c6 {[%clk 0:02:23]} 8. Qd2 {[%clk 0:02:34]}  Be7 {[%clk 0:02:12]} 9. O-O-O {[%clk 0:02:34]}  b5 {[%clk 0:01:52]} 10. Ne2 {[%clk 0:02:31]}  Nb6 {[%clk 0:01:45]} 11. Ng3 {[%clk 0:02:30]}  Bg4 {[%clk 0:01:42]} 12. Be2 {[%clk 0:02:11]}  Nc4 {[%clk 0:01:39]} 13. Qc3 {[%clk 0:02:06]}  Nxe3 {[%clk 0:01:27]} 14. fxe3 {[%clk 0:02:02]}  O-O {[%clk 0:01:10]} 15. dxe5 {[%clk 0:01:59]}  Qc7 {[%clk 0:01:04]} 16. exd6 {[%clk 0:01:40]}  Bxd6 {[%clk 0:01:05]} 17. e5 {[%clk 0:01:40]}  Nxg3 {[%clk 0:00:48]} 18. hxg3 {[%clk 0:01:36]}  Be7 {[%clk 0:00:48]} 19. Nd4 {[%clk 0:00:52]}  Bxe2 {[%clk 0:00:45]} 20. Nxe2 {[%clk 0:00:53]}  Bxg5 {[%clk 0:00:43]} 21. Nd4 {[%clk 0:00:49]}  Qxe5 {[%clk 0:00:41]} 22. Qxc6 {[%clk 0:00:38]}  Bxe3+ {[%clk 0:00:40]} 23. Kb1 {[%clk 0:00:31]}  Bxd4 {[%clk 0:00:40]} 0-1


[Site "https://www.chess.com"]

[Event "Titled Tuesday Blitz July 18 Late 2023"]
[White "Riehle, Marco"]
[Black "Erzhanov, Arman"]
[WhiteFideId "12904392"]
[BlackFideId "4138821"]
[WhiteElo "2739"]
[BlackElo "2511"]
[Result "1-0"]
[Round "2"]
[TimeControl "180+2"]
[Date "2023.07.18"]
[WhiteClock "0:01:02"]
[BlackClock "0:00:01"]
[Board "54"]

1. e4 {[%clk 0:02:56]}  d6 {[%clk 0:02:59]} 2. d4 {[%clk 0:02:56]}  Nf6 {[%clk 0:03:00]} 3. f3 {[%clk 0:02:56]}  d5 {[%clk 0:03:00]} 4. e5 {[%clk 0:02:56]}  Nfd7 {[%clk 0:03:00]} 5. f4 {[%clk 0:02:56]}  c5 {[%clk 0:03:00]} 6. c3 {[%clk 0:02:56]}  Nc6 {[%clk 0:03:01]} 7. Nf3 {[%clk 0:02:56]}  cxd4 {[%clk 0:03:01]} 8. cxd4 {[%clk 0:02:57]}  Nb6 {[%clk 0:03:02]} 9. Bd3 {[%clk 0:02:54]}  Bg4 {[%clk 0:03:01]} 10. Be3 {[%clk 0:02:54]}  e6 {[%clk 0:03:01]} 11. a3 {[%clk 0:02:53]}  Nc4 {[%clk 0:03:01]} 12. Bxc4 {[%clk 0:02:50]}  dxc4 {[%clk 0:03:02]} 13. O-O {[%clk 0:02:49]}  Na5 {[%clk 0:02:43]} 14. Qa4+ {[%clk 0:02:44]}  Ke7 {[%clk 0:02:30]} 15. d5 {[%clk 0:02:37]}  f6 {[%clk 0:01:37]} 16. exf6+ {[%clk 0:02:34]}  gxf6 {[%clk 0:01:37]} 17. dxe6 {[%clk 0:02:30]}  Bxe6 {[%clk 0:01:34]} 18. Ng5 {[%clk 0:02:08]}  b6 {[%clk 0:01:01]} 19. Nc3 {[%clk 0:01:57]}  fxg5 {[%clk 0:00:56]} 20. f5 {[%clk 0:01:57]}  Bd7 {[%clk 0:00:51]} 21. Qd1 {[%clk 0:01:33]}  h6 {[%clk 0:00:18]} 22. f6+ {[%clk 0:01:27]}  Kf7 {[%clk 0:00:07]} 23. Qh5+ {[%clk 0:01:25]}  Ke6 {[%clk 0:00:07]} 24. Rad1 {[%clk 0:01:24]}  Bd6 {[%clk 0:00:04]} 25. Bd4 {[%clk 0:01:18]}  Nc6 {[%clk 0:00:04]} 26. f7 {[%clk 0:01:07]}  Be5 {[%clk 0:00:04]} 27. Qg6+ {[%clk 0:01:06]}  Ke7 {[%clk 0:00:04]} 28. Bxe5 {[%clk 0:01:05]}  Nxe5 {[%clk 0:00:03]} 29. Qf6+ {[%clk 0:01:03]}  Kf8 {[%clk 0:00:03]} 30. Qxh8+ {[%clk 0:01:04]}  Ke7 {[%clk 0:00:02]} 31. Qxe5+ {[%clk 0:01:04]}  Kf8 {[%clk 0:00:03]} 32. Nd5 {[%clk 0:01:02]}  Qc7 {[%clk 0:00:01]} 33. Qh8# {[%clk 0:01:02]} 1-0


[Site "https://www.chess.com"]

[Event "Titled Tuesday Blitz July 18 Late 2023"]
[White "Luo, Terry"]
[Black "Sokolovsky, Yahli"]
[WhiteFideId "30931045"]
[BlackFideId "2820242"]
[WhiteElo "2510"]
[BlackElo "2728"]
[Result "0-1"]
[Round "2"]
[TimeControl "180+2"]
[Date "2023.07.18"]
[WhiteClock "0:01:38"]
[BlackClock "0:00:11"]
[Board "57"]

1. d4 {[%clk 0:03:00]}  d5 {[%clk 0:03:00]} 2. c4 {[%clk 0:03:01]}  e6 {[%clk 0:03:00]} 3. Nf3 {[%clk 0:03:01]}  c6 {[%clk 0:02:59]} 4. Bg5 {[%clk 0:02:56]}  f6 {[%clk 0:02:58]} 5. Bh4 {[%clk 0:02:56]}  Ne7 {[%clk 0:02:53]} 6. e3 {[%clk 0:02:56]}  Nf5 {[%clk 0:02:53]} 7. Bg3 {[%clk 0:02:56]}  Bb4+ {[%clk 0:02:46]} 8. Nc3 {[%clk 0:02:55]}  Qa5 {[%clk 0:02:46]} 9. Qb3 {[%clk 0:02:51]}  Nd7 {[%clk 0:02:36]} 10. a3 {[%clk 0:02:50]}  Bxc3+ {[%clk 0:02:27]} 11. Qxc3 {[%clk 0:02:50]}  Qxc3+ {[%clk 0:02:28]} 12. bxc3 {[%clk 0:02:51]}  Nb6 {[%clk 0:02:15]} 13. c5 {[%clk 0:02:48]}  Na4 {[%clk 0:02:15]} 14. Kd2 {[%clk 0:02:47]}  b5 {[%clk 0:02:13]} 15. Bc7 {[%clk 0:02:44]}  a5 {[%clk 0:02:10]} 16. g4 {[%clk 0:02:16]}  Kd7 {[%clk 0:02:02]} 17. Bf4 {[%clk 0:02:12]}  Ne7 {[%clk 0:02:03]} 18. Bd3 {[%clk 0:02:11]}  Ng6 {[%clk 0:01:39]} 19. Bg3 {[%clk 0:02:08]}  e5 {[%clk 0:01:32]} 20. Bxg6 {[%clk 0:01:45]}  hxg6 {[%clk 0:01:29]} 21. Nh4 {[%clk 0:01:46]}  Ke8 {[%clk 0:00:51]} 22. Nxg6 {[%clk 0:01:45]}  Rh6 {[%clk 0:00:50]} 23. Nh4 {[%clk 0:01:43]}  Bxg4 {[%clk 0:00:43]} 24. h3 {[%clk 0:01:41]}  Be6 {[%clk 0:00:38]} 25. Nf3 {[%clk 0:01:41]}  e4 {[%clk 0:00:29]} 26. Ng1 {[%clk 0:01:40]}  Nb2 {[%clk 0:00:26]} 27. Ne2 {[%clk 0:01:39]}  Bxh3 {[%clk 0:00:23]} 28. Nf4 {[%clk 0:01:39]}  Bg4 {[%clk 0:00:21]} 29. Rxh6 {[%clk 0:01:39]}  gxh6 {[%clk 0:00:21]} 30. Rh1 {[%clk 0:01:39]}  h5 {[%clk 0:00:20]} 31. Nxh5 {[%clk 0:01:39]}  Nc4+ {[%clk 0:00:19]} 32. Kc1 {[%clk 0:01:39]}  Bxh5 {[%clk 0:00:15]} 33. Rxh5 {[%clk 0:01:38]}  Kf7 {[%clk 0:00:11]} 34. Rh7+ {[%clk 0:01:37]}  Kg6 {[%clk 0:00:11]} 35. Rc7 {[%clk 0:01:37]}  Ra6 {[%clk 0:00:12]} 36. Rxc6 {[%clk 0:01:38]}  Rxc6 {[%clk 0:00:11]} 0-1


[Site "https://www.chess.com"]

[Event "Titled Tuesday Blitz July 18 Late 2023"]
[White "Barski, Radoslaw"]
[Black "Nasuta, Grzegorz"]
[WhiteFideId "1131710"]
[BlackFideId "1141686"]
[WhiteElo "2510"]
[BlackElo "2720"]
[Result "0-1"]
[Round "2"]
[TimeControl "180+2"]
[Date "2023.07.18"]
[WhiteClock "0:00:03"]
[BlackClock "0:00:18"]
[Board "58"]

1. d4 {[%clk 0:02:59]}  d5 {[%clk 0:02:56]} 2. c4 {[%clk 0:02:58]}  e6 {[%clk 0:02:55]} 3. Nc3 {[%clk 0:02:57]}  c6 {[%clk 0:02:55]} 4. Nf3 {[%clk 0:02:48]}  dxc4 {[%clk 0:02:53]} 5. a4 {[%clk 0:02:47]}  Bb4 {[%clk 0:02:53]} 6. e3 {[%clk 0:02:48]}  b5 {[%clk 0:02:51]} 7. Bd2 {[%clk 0:02:48]}  a5 {[%clk 0:02:50]} 8. axb5 {[%clk 0:02:48]}  Bxc3 {[%clk 0:02:50]} 9. Bxc3 {[%clk 0:02:48]}  cxb5 {[%clk 0:02:50]} 10. b3 {[%clk 0:02:49]}  Bb7 {[%clk 0:02:50]} 11. bxc4 {[%clk 0:02:49]}  b4 {[%clk 0:02:51]} 12. Bb2 {[%clk 0:02:50]}  Nf6 {[%clk 0:02:44]} 13. Bd3 {[%clk 0:02:49]}  O-O {[%clk 0:02:43]} 14. O-O {[%clk 0:02:50]}  Nbd7 {[%clk 0:02:43]} 15. Nd2 {[%clk 0:02:45]}  Qc7 {[%clk 0:02:42]} 16. f4 {[%clk 0:02:44]}  a4 {[%clk 0:02:33]} 17. Rb1 {[%clk 0:02:44]}  Rfd8 {[%clk 0:02:20]} 18. Qe2 {[%clk 0:02:44]}  Qd6 {[%clk 0:02:14]} 19. e4 {[%clk 0:02:11]}  Nc5 {[%clk 0:01:26]} 20. e5 {[%clk 0:01:58]}  Qc6 {[%clk 0:01:26]} 21. Bc2 {[%clk 0:01:38]}  b3 {[%clk 0:01:09]} 22. exf6 {[%clk 0:00:15]}  bxc2 {[%clk 0:01:05]} 23. Rbe1 {[%clk 0:00:15]}  Nd3 {[%clk 0:01:02]} 24. d5 {[%clk 0:00:15]}  Qb6+ {[%clk 0:00:53]} 25. Kh1 {[%clk 0:00:11]}  Nxe1 {[%clk 0:00:39]} 26. Qg4 {[%clk 0:00:10]}  g6 {[%clk 0:00:38]} 27. Be5 {[%clk 0:00:09]}  c1=Q {[%clk 0:00:35]} 28. Qg5 {[%clk 0:00:08]}  Nd3 {[%clk 0:00:25]} 29. c5 {[%clk 0:00:05]}  Qbxc5 {[%clk 0:00:18]} 30. h4 {[%clk 0:00:03]} 0-1


[Site "https://www.chess.com"]

[Event "Titled Tuesday Blitz July 18 Late 2023"]
[White "Volovich, Vasily"]
[Black "Poltorak, Sebastian"]
[WhiteFideId "34169676"]
[BlackFideId "1199498"]
[WhiteElo "2713"]
[BlackElo "2510"]
[Result "0-1"]
[Round "2"]
[TimeControl "180+2"]
[Date "2023.07.18"]
[WhiteClock "0:00:00"]
[BlackClock "0:00:17"]
[Board "59"]

1. e4 {[%clk 0:03:00]}  Nc6 {[%clk 0:02:58]} 2. Nf3 {[%clk 0:02:59]}  f5 {[%clk 0:02:58]} 3. exf5 {[%clk 0:02:59]}  d5 {[%clk 0:02:59]} 4. d4 {[%clk 0:02:59]}  Bxf5 {[%clk 0:02:59]} 5. c3 {[%clk 0:02:52]}  Qd6 {[%clk 0:02:56]} 6. Bd3 {[%clk 0:02:52]}  Bg4 {[%clk 0:02:56]} 7. Nbd2 {[%clk 0:02:45]}  O-O-O {[%clk 0:02:53]} 8. h3 {[%clk 0:02:45]}  Bh5 {[%clk 0:02:52]} 9. b4 {[%clk 0:02:35]}  e5 {[%clk 0:02:47]} 10. b5 {[%clk 0:02:35]}  e4 {[%clk 0:02:47]} 11. bxc6 {[%clk 0:02:35]}  exd3 {[%clk 0:02:18]} 12. cxb7+ {[%clk 0:02:34]}  Kb8 {[%clk 0:02:12]} 13. Nb3 {[%clk 0:02:09]}  Re8+ {[%clk 0:02:06]} 14. Be3 {[%clk 0:02:09]}  Rxe3+ {[%clk 0:01:43]} 15. fxe3 {[%clk 0:02:08]}  Qg3+ {[%clk 0:01:44]} 16. Kf1 {[%clk 0:02:04]}  Nf6 {[%clk 0:01:42]} 17. Qe1 {[%clk 0:01:35]}  Ne4 {[%clk 0:01:35]} 18. Qxg3 {[%clk 0:01:30]}  Nxg3+ {[%clk 0:01:36]} 19. Kf2 {[%clk 0:01:31]}  Nxh1+ {[%clk 0:01:34]} 20. Rxh1 {[%clk 0:01:32]}  Bd6 {[%clk 0:01:25]} 21. Na5 {[%clk 0:01:10]}  Rf8 {[%clk 0:01:05]} 22. Rb1 {[%clk 0:01:07]}  Be8 {[%clk 0:01:05]} 23. Ke1 {[%clk 0:00:53]}  g5 {[%clk 0:00:47]} 24. Kd2 {[%clk 0:00:51]}  h5 {[%clk 0:00:45]} 25. Nxg5 {[%clk 0:00:16]}  Rf2+ {[%clk 0:00:44]} 26. Kxd3 {[%clk 0:00:16]}  Rxg2 {[%clk 0:00:21]} 27. h4 {[%clk 0:00:17]}  Rxa2 {[%clk 0:00:22]} 28. Nb3 {[%clk 0:00:13]}  Bb5+ {[%clk 0:00:22]} 29. c4 {[%clk 0:00:12]}  dxc4+ {[%clk 0:00:19]} 30. Ke4 {[%clk 0:00:12]}  cxb3 {[%clk 0:00:19]} 31. Rxb3 {[%clk 0:00:13]}  Bc6+ {[%clk 0:00:19]} 32. Kf5 {[%clk 0:00:13]}  Ra5+ {[%clk 0:00:18]} 33. Kg6 {[%clk 0:00:13]}  Rb5 {[%clk 0:00:16]} 34. Rc3 {[%clk 0:00:11]}  Bxb7 {[%clk 0:00:16]} 35. Kxh5 {[%clk 0:00:12]}  a5 {[%clk 0:00:15]} 36. Kg6 {[%clk 0:00:11]}  Be7 {[%clk 0:00:14]} 37. Rc1 {[%clk 0:00:04]}  a4 {[%clk 0:00:15]} 38. e4 {[%clk 0:00:04]}  Bxg5 {[%clk 0:00:14]} 39. hxg5 {[%clk 0:00:04]}  Bxe4+ {[%clk 0:00:15]} 40. Kh6 {[%clk 0:00:03]}  a3 {[%clk 0:00:14]} 41. g6 {[%clk 0:00:03]}  Rb6 {[%clk 0:00:15]} 42. Ra1 {[%clk 0:00:01]}  Rxg6+ {[%clk 0:00:15]} 43. Kh5 {[%clk 0:00:01]}  Ra6 {[%clk 0:00:16]} 44. Kg5 {[%clk 0:00:02]}  a2 {[%clk 0:00:16]} 45. Kf4 {[%clk 0:00:02]}  Bd5 {[%clk 0:00:16]} 46. Ke5 {[%clk 0:00:02]}  c6 {[%clk 0:00:16]} 47. Kd6 {[%clk 0:00:03]}  Rb6 {[%clk 0:00:17]} 48. Kc5 {[%clk 0:00:00]}  Rb1 {[%clk 0:00:17]} 0-1


[Site "https://www.chess.com"]

[Event "Titled Tuesday Blitz July 18 Late 2023"]
[White "Haydon, David L"]
[Black "Mattheii"]
[WhiteFideId "415405"]
[WhiteElo "2708"]
[BlackElo "2510"]
[Result "1/2-1/2"]
[Round "2"]
[TimeControl "180+2"]
[Date "2023.07.18"]
[WhiteClock "0:00:58"]
[BlackClock "0:00:08"]
[Board "60"]

1. d4 {[%clk 0:03:00]}  Nf6 {[%clk 0:02:59]} 2. Nc3 {[%clk 0:03:01]}  d5 {[%clk 0:02:58]} 3. Bf4 {[%clk 0:03:01]}  a6 {[%clk 0:02:53]} 4. e3 {[%clk 0:03:00]}  b5 {[%clk 0:02:49]} 5. Nf3 {[%clk 0:03:00]}  Bb7 {[%clk 0:02:45]} 6. Ne5 {[%clk 0:02:59]}  e6 {[%clk 0:02:43]} 7. Bd3 {[%clk 0:02:58]}  c5 {[%clk 0:02:40]} 8. dxc5 {[%clk 0:02:57]}  Bxc5 {[%clk 0:02:41]} 9. O-O {[%clk 0:02:57]}  O-O {[%clk 0:02:39]} 10. Qf3 {[%clk 0:02:53]}  Nbd7 {[%clk 0:02:33]} 11. Qh3 {[%clk 0:02:48]}  Nxe5 {[%clk 0:02:12]} 12. Bxe5 {[%clk 0:02:46]}  h6 {[%clk 0:02:13]} 13. Rad1 {[%clk 0:02:44]}  Bd6 {[%clk 0:02:11]} 14. Bxd6 {[%clk 0:02:33]}  Qxd6 {[%clk 0:02:11]} 15. a4 {[%clk 0:02:33]}  b4 {[%clk 0:02:02]} 16. Ne2 {[%clk 0:02:32]}  a5 {[%clk 0:02:02]} 17. Nd4 {[%clk 0:02:32]}  Rfc8 {[%clk 0:01:54]} 18. Nb5 {[%clk 0:02:30]}  Qe5 {[%clk 0:01:52]} 19. b3 {[%clk 0:02:26]}  Ba6 {[%clk 0:01:51]} 20. Qg3 {[%clk 0:02:24]}  Nd7 {[%clk 0:01:43]} 21. f4 {[%clk 0:02:20]}  Qf6 {[%clk 0:01:29]} 22. f5 {[%clk 0:02:15]}  e5 {[%clk 0:01:26]} 23. e4 {[%clk 0:02:06]}  d4 {[%clk 0:01:12]} 24. Rfe1 {[%clk 0:01:55]}  Nc5 {[%clk 0:01:03]} 25. Bc4 {[%clk 0:01:52]}  Nxa4 {[%clk 0:00:53]} 26. Ra1 {[%clk 0:01:51]}  Bxb5 {[%clk 0:00:50]} 27. Bxb5 {[%clk 0:01:50]}  Nc3 {[%clk 0:00:50]} 28. Bd3 {[%clk 0:01:48]}  a4 {[%clk 0:00:48]} 29. bxa4 {[%clk 0:01:47]}  Rxa4 {[%clk 0:00:48]} 30. Rxa4 {[%clk 0:01:47]}  Nxa4 {[%clk 0:00:49]} 31. Ra1 {[%clk 0:01:47]}  Nc5 {[%clk 0:00:48]} 32. Rb1 {[%clk 0:01:44]}  Rb8 {[%clk 0:00:43]} 33. h3 {[%clk 0:01:37]}  b3 {[%clk 0:00:42]} 34. cxb3 {[%clk 0:01:36]}  Rxb3 {[%clk 0:00:42]} 35. Rxb3 {[%clk 0:01:36]}  Nxb3 {[%clk 0:00:43]} 36. Bc4 {[%clk 0:01:35]}  Nc5 {[%clk 0:00:42]} 37. Bd5 {[%clk 0:01:35]}  Qg5 {[%clk 0:00:35]} 38. Qxe5 {[%clk 0:01:30]}  Qe3+ {[%clk 0:00:31]} 39. Kh2 {[%clk 0:01:29]}  Nd3 {[%clk 0:00:28]} 40. Qb8+ {[%clk 0:01:26]}  Kh7 {[%clk 0:00:28]} 41. Bxf7 {[%clk 0:01:26]}  Qf4+ {[%clk 0:00:25]} 42. Qxf4 {[%clk 0:01:25]}  Nxf4 {[%clk 0:00:26]} 43. e5 {[%clk 0:01:20]}  d3 {[%clk 0:00:25]} 44. Bb3 {[%clk 0:01:15]}  d2 {[%clk 0:00:24]} 45. g3 {[%clk 0:01:08]}  Nd5 {[%clk 0:00:18]} 46. Kg1 {[%clk 0:01:08]}  Ne3 {[%clk 0:00:16]} 47. e6 {[%clk 0:01:08]}  Nxf5 {[%clk 0:00:15]} 48. g4 {[%clk 0:01:07]}  Ne7 {[%clk 0:00:15]} 49. Kf2 {[%clk 0:01:07]}  Kg6 {[%clk 0:00:15]} 50. Ke3 {[%clk 0:01:07]}  Kf6 {[%clk 0:00:16]} 51. Kxd2 {[%clk 0:01:07]}  Nc6 {[%clk 0:00:15]} 52. Ke3 {[%clk 0:01:07]}  Nd8 {[%clk 0:00:16]} 53. Kf4 {[%clk 0:01:05]}  Nxe6+ {[%clk 0:00:16]} 54. Bxe6 {[%clk 0:01:04]}  Kxe6 {[%clk 0:00:17]} 55. g5 {[%clk 0:01:04]}  h5 {[%clk 0:00:10]} 56. Ke4 {[%clk 0:00:57]}  g6 {[%clk 0:00:07]} 57. h4 {[%clk 0:00:57]}  Kd6 {[%clk 0:00:07]} 58. Kd4 {[%clk 0:00:57]}  Ke6 {[%clk 0:00:06]} 59. Ke4 {[%clk 0:00:58]}  Kd6 {[%clk 0:00:07]} 60. Kd4 {[%clk 0:00:58]}  Ke6 {[%clk 0:00:08]} 61. Ke4 {[%clk 0:00:58]} 1/2-1/2


[Site "https://www.chess.com"]

[Event "Titled Tuesday Blitz July 18 Late 2023"]
[White "Mackster23"]
[Black "Darini, Pouria"]
[BlackFideId "12502200"]
[WhiteElo "2489"]
[BlackElo "2705"]
[Result "0-1"]
[Round "2"]
[TimeControl "180+2"]
[Date "2023.07.18"]
[WhiteClock "0:00:21"]
[BlackClock "0:00:59"]
[Board "64"]

1. e4 {[%clk 0:03:00]}  c5 {[%clk 0:02:59]} 2. Nc3 {[%clk 0:03:00]}  Nc6 {[%clk 0:02:59]} 3. Nge2 {[%clk 0:03:00]}  d6 {[%clk 0:02:59]} 4. g3 {[%clk 0:02:59]}  g6 {[%clk 0:02:59]} 5. Bg2 {[%clk 0:02:59]}  Bg7 {[%clk 0:02:59]} 6. O-O {[%clk 0:02:59]}  Rb8 {[%clk 0:03:00]} 7. a4 {[%clk 0:02:59]}  a6 {[%clk 0:03:00]} 8. d3 {[%clk 0:02:58]}  Bd7 {[%clk 0:03:00]} 9. Be3 {[%clk 0:02:58]}  Nd4 {[%clk 0:02:59]} 10. Qd2 {[%clk 0:02:55]}  h5 {[%clk 0:02:57]} 11. Nd1 {[%clk 0:02:50]}  h4 {[%clk 0:02:49]} 12. Bxd4 {[%clk 0:02:48]}  cxd4 {[%clk 0:02:50]} 13. c3 {[%clk 0:02:49]}  hxg3 {[%clk 0:02:48]} 14. fxg3 {[%clk 0:02:48]}  dxc3 {[%clk 0:02:38]} 15. bxc3 {[%clk 0:02:49]}  Nf6 {[%clk 0:02:32]} 16. d4 {[%clk 0:02:38]}  Bh3 {[%clk 0:02:01]} 17. Bxh3 {[%clk 0:02:31]}  Rxh3 {[%clk 0:02:01]} 18. Nf4 {[%clk 0:02:30]}  Rh7 {[%clk 0:01:50]} 19. Qe2 {[%clk 0:02:30]}  e5 {[%clk 0:01:44]} 20. Nd5 {[%clk 0:01:58]}  Nxd5 {[%clk 0:01:43]} 21. exd5 {[%clk 0:01:59]}  Qe7 {[%clk 0:01:36]} 22. Qg4 {[%clk 0:01:41]}  Rh6 {[%clk 0:01:08]} 23. Nf2 {[%clk 0:01:33]}  f5 {[%clk 0:01:08]} 24. Qf3 {[%clk 0:01:27]}  e4 {[%clk 0:01:06]} 25. Qf4 {[%clk 0:01:22]}  Kd7 {[%clk 0:01:06]} 26. Rab1 {[%clk 0:01:06]}  Rh7 {[%clk 0:01:07]} 27. Rb6 {[%clk 0:01:01]}  Bh6 {[%clk 0:01:04]} 28. Rfb1 {[%clk 0:00:35]}  Bxf4 {[%clk 0:01:04]} 29. Rxb7+ {[%clk 0:00:35]}  Rxb7 {[%clk 0:01:04]} 30. Rxb7+ {[%clk 0:00:35]}  Kd8 {[%clk 0:01:01]} 31. Rxe7 {[%clk 0:00:35]}  Kxe7 {[%clk 0:01:01]} 32. gxf4 {[%clk 0:00:35]}  Rh4 {[%clk 0:01:00]} 33. c4 {[%clk 0:00:31]}  Rxf4 {[%clk 0:01:00]} 34. Nh3 {[%clk 0:00:24]}  Rf3 {[%clk 0:00:58]} 35. Ng5 {[%clk 0:00:21]}  Rc3 {[%clk 0:00:59]} 0-1


[Site "https://www.chess.com"]

[Event "Titled Tuesday Blitz July 18 Late 2023"]
[White "Wieczorek, Oskar"]
[Black "Kleiman, Jake"]
[WhiteFideId "1133950"]
[BlackFideId "2020041"]
[WhiteElo "2702"]
[BlackElo "2476"]
[Result "1-0"]
[Round "2"]
[TimeControl "180+2"]
[Date "2023.07.18"]
[WhiteClock "0:00:03"]
[BlackClock "0:00:11"]
[Board "65"]

1. Nf3 {[%clk 0:03:00]}  Nf6 {[%clk 0:02:58]} 2. b3 {[%clk 0:03:00]}  e6 {[%clk 0:02:58]} 3. Bb2 {[%clk 0:03:01]}  d5 {[%clk 0:02:58]} 4. g3 {[%clk 0:03:01]}  Be7 {[%clk 0:02:58]} 5. Bg2 {[%clk 0:03:01]}  O-O {[%clk 0:02:59]} 6. O-O {[%clk 0:03:02]}  b6 {[%clk 0:02:58]} 7. c4 {[%clk 0:03:03]}  Bb7 {[%clk 0:02:59]} 8. e3 {[%clk 0:03:02]}  dxc4 {[%clk 0:02:55]} 9. bxc4 {[%clk 0:03:03]}  c5 {[%clk 0:02:55]} 10. d3 {[%clk 0:03:02]}  Nc6 {[%clk 0:02:53]} 11. Qe2 {[%clk 0:03:02]}  Qc7 {[%clk 0:02:45]} 12. Nc3 {[%clk 0:03:02]}  Rad8 {[%clk 0:02:45]} 13. Rad1 {[%clk 0:02:53]}  Rd7 {[%clk 0:02:42]} 14. Ng5 {[%clk 0:02:51]}  Rfd8 {[%clk 0:02:33]} 15. f4 {[%clk 0:02:51]}  Nb4 {[%clk 0:02:28]} 16. Bxb7 {[%clk 0:02:09]}  Qxb7 {[%clk 0:02:28]} 17. d4 {[%clk 0:01:37]}  h6 {[%clk 0:02:20]} 18. Nf3 {[%clk 0:01:33]}  cxd4 {[%clk 0:02:07]} 19. exd4 {[%clk 0:01:32]}  Nc6 {[%clk 0:01:48]} 20. Ne4 {[%clk 0:01:07]}  Nxe4 {[%clk 0:01:23]} 21. Qxe4 {[%clk 0:01:07]}  Na5 {[%clk 0:01:24]} 22. Qe2 {[%clk 0:01:03]}  Rc7 {[%clk 0:01:23]} 23. Rc1 {[%clk 0:00:57]}  Rdc8 {[%clk 0:01:21]} 24. Ne5 {[%clk 0:00:57]}  Bd6 {[%clk 0:01:13]} 25. f5 {[%clk 0:00:29]}  Bxe5 {[%clk 0:01:13]} 26. dxe5 {[%clk 0:00:24]}  exf5 {[%clk 0:01:14]} 27. e6 {[%clk 0:00:17]}  Qc6 {[%clk 0:00:37]} 28. Rxf5 {[%clk 0:00:12]}  Qxe6 {[%clk 0:00:34]} 29. Re5 {[%clk 0:00:10]}  Qg6 {[%clk 0:00:32]} 30. Re1 {[%clk 0:00:10]}  Nxc4 {[%clk 0:00:31]} 31. Re8+ {[%clk 0:00:09]}  Rxe8 {[%clk 0:00:29]} 32. Qxe8+ {[%clk 0:00:10]}  Kh7 {[%clk 0:00:30]} 33. Bd4 {[%clk 0:00:11]}  Nd6 {[%clk 0:00:22]} 34. Qd8 {[%clk 0:00:05]}  Nb5 {[%clk 0:00:21]} 35. Re8 {[%clk 0:00:03]}  Qb1+ {[%clk 0:00:20]} 36. Kg2 {[%clk 0:00:03]}  Rc2+ {[%clk 0:00:19]} 37. Bf2 {[%clk 0:00:04]}  Qb2 {[%clk 0:00:17]} 38. Rh8+ {[%clk 0:00:03]}  Kg6 {[%clk 0:00:17]} 39. Qd3+ {[%clk 0:00:04]}  f5 {[%clk 0:00:18]} 40. Qf3 {[%clk 0:00:03]}  Nd4 {[%clk 0:00:17]} 41. Qf4 {[%clk 0:00:03]}  Qc3 {[%clk 0:00:16]} 42. Qd6+ {[%clk 0:00:03]}  Kf7 {[%clk 0:00:16]} 43. Qd7+ {[%clk 0:00:03]}  Kg6 {[%clk 0:00:16]} 44. Qd6+ {[%clk 0:00:04]}  Kh5 {[%clk 0:00:16]} 45. Qf4 {[%clk 0:00:03]}  g5 {[%clk 0:00:11]} 46. g4+ {[%clk 0:00:03]}  fxg4 {[%clk 0:00:11]} 47. Qf7# {[%clk 0:00:03]} 1-0


[Site "https://www.chess.com"]